bitfinex/quotes_SOLUSD_20240917
["timestamp","ask_amount","ask_price","bid_price","bid_amount"]
[1726592447143,1.66654481,132.67,132.64,7.539]
[1726592447354,1.66654481,132.67,132.6,21.957732]
[1726592447355,24.027864,132.66,132.6,21.957732]
[1726592447555,7.5386,132.65,132.6,21.957732]
[1726592447865,7.5386,132.65,132.62,7.5403]
[1726592447866,1.66654481,132.65,132.62,7.5403]
[1726592448344,0.25098,132.62,132.6,0.052932]
[1726592448546,23.902374,132.61,132.6,0.052932]
[1726592449247,13.8127,132.66,132.6,0.052932]
[1726592449581,24.027864,132.65,132.6,0.052932]
[1726592450064,24.027864,132.61,132.6,0.052932]
[1726592450273,7.5407,132.62,132.6,0.052932]
[1726592450453,31.566564,132.65,132.6,7.594332]
[1726592450652,24.027864,132.63,132.62,7.5403]
[1726592450967,21.3507,132.66,132.62,7.5403]
[1726592450968,13.8127,132.66,132.62,7.5403]
[1726592451265,0.25098,132.64,132.62,7.5403]
[1726592451467,0.25098,132.64,132.6,0.052932]
[1726592451769,0.25098,132.64,132.62,7.5402]
[1726592452268,0.12549,132.65,132.63,7.5396]
[1726592452466,37.637,132.68,132.63,7.5396]
[1726592453175,7.88400724,132.69,132.62,21.618]
[1726592453340,0.2023704,132.7,132.62,21.618]
[1726592453546,1.86891521,132.7,132.62,21.618]
[1726592453761,0.2023704,132.7,132.62,21.618]
[1726592454275,7.5364,132.69,132.62,21.618]
[1726592454458,0.25098,132.67,132.62,21.618]
[1726592454657,24.027864,132.68,132.62,21.618]
[1726592454876,24.027864,132.66,132.63,7.5397]
[1726592455168,23.776884,132.68,132.62,21.618]
[1726592455371,0.12549,132.67,132.62,21.618]
[1726592455583,0.12549,132.68,132.62,21.618]
[1726592455795,0.12549,132.68,132.66,7.5376]
[1726592456085,0.2023704,132.7,132.69,7.5363]
[1726592457490,0.2023704,132.7,132.68,6.6472]
[1726592457661,0.2023704,132.7,132.63,23.8972989]
[1726592457662,1.86891521,132.7,132.67,7.5373]
[1726592457861,0.2023704,132.7,132.68,7.5367]
[1726592458086,25.64579921,132.7,132.67,7.5374]
[1726592459987,0.2023704,132.7,132.69,7.5363]
[1726592461274,0.2023704,132.7,132.68,23.5856]
[1726592461473,0.2023704,132.7,132.68,7.5368]
[1726592461684,0.2023704,132.7,132.67,7.5374]
[1726592461893,1.86891521,132.7,132.67,7.5374]
[1726592462193,1.86891521,132.7,132.66,7.5379]
[1726592462194,23.776884,132.69,132.66,7.5379]
[1726592462489,0.2023704,132.7,132.68,7.5365]
[1726592463587,0.25098,132.69,132.64,22.2264]
[1726592463770,0.25098,132.69,132.66,7.5376]
[1726592463970,0.25098,132.69,132.67,7.5374]
[1726592464171,0.2023704,132.7,132.68,7.5369]
[1726592464882,23.902374,132.69,132.66,7.5375]
[1726592465071,24.027864,132.69,132.66,7.5375]
[1726592465270,24.027864,132.69,132.67,7.5374]
[1726592465790,1.66654481,132.68,132.64,22.2264]
[1726592466087,0.12549,132.69,132.66,7.538]
[1726592466291,0.25098,132.69,132.64,22.2264]
[1726592466477,24.027864,132.69,132.64,22.2264]
[1726592466677,23.902374,132.67,132.65,7.5382]
[1726592467189,0.25098,132.69,132.67,7.5373]
[1726592467586,23.776884,132.68,132.64,22.2264]
[1726592467876,23.776884,132.68,132.64,29.765]
[1726592468081,23.776884,132.68,132.65,7.5384]
[1726592469582,23.776884,132.68,132.66,7.538]
[1726592470071,24.027864,132.69,132.66,7.538]
[1726592470280,24.027864,132.69,132.64,29.7652]
[1726592470599,31.565664,132.67,132.63,7.5396]
[1726592470774,1.66654481,132.66,132.63,7.5396]
[1726592470976,24.027864,132.65,132.62,7.5402]
[1726592471175,24.027864,132.65,132.63,7.5395]
[1726592471691,24.027864,132.67,132.64,7.5392]
[1726592472395,0.2023704,132.7,132.6,22.056732]
[1726592472598,7.7381704,132.7,132.66,7.5376]
[1726592472791,9.20284481,132.69,132.66,7.5378]
[1726592473098,1.66654481,132.69,132.66,7.5378]
[1726592473299,7.7382704,132.7,132.66,7.5378]
[1726592473794,0.2023704,132.7,132.68,7.5369]
[1726592473989,0.2023704,132.7,132.69,7.5363]
[1726592478504,0.2023704,132.7,132.69,33.8377]
[1726592479101,0.2023704,132.7,132.69,13.8377]
[1726592483080,0.2023704,132.7,132.69,57.71841466]
[1726592483281,0.2023704,132.7,132.69,57.96939466]
[1726592484003,0.2023704,132.7,132.69,72.27748226]
[1726592484389,0.2553024,132.74,132.73,7.534]
[1726592488988,24.027864,132.73,132.66,22.7158]
[1726592489187,0.25098,132.73,132.66,22.7158]
[1726592489617,0.2553024,132.74,132.67,38.18880226]
[1726592489912,0.2553024,132.74,132.72,7.5344]
[1726592490120,0.2553024,132.74,132.73,7.534]
[1726592502021,0.2553024,132.74,132.73,66.86631875]
[1726592502907,0.2553024,132.74,132.73,65.72280226]
[1726592503500,0.2553024,132.74,132.73,27.534]
[1726592503920,0.2553024,132.74,132.73,51.39330217]
[1726592505001,0.2553024,132.74,132.73,27.534]
[1726592512628,0.2553024,132.74,132.73,27.78498]
[1726592513004,0.2553024,132.74,132.73,29.29094558]
[1726592513208,0.2553024,132.78,132.73,29.29094558]
[1726592513209,0.2553024,132.78,132.74,20.0]
[1726592513432,0.2553024,132.78,132.76,23.85930217]
[1726592513627,0.2553024,132.78,132.77,1.50594239]
[1726592514610,0.2553024,132.78,132.77,1.50594238]
[1726592514912,0.2553024,132.78,132.77,21.50594238]
[1726592516115,2.4e-06,132.78,132.77,36.31548]
[1726592516313,0.5034108,132.82,132.79,20.0]
[1726592516314,1.08e-05,132.82,132.79,20.0]
[1726592516513,1.08e-05,132.82,132.81,43.85930217]
[1726592518061,1.08e-05,132.82,132.81,43.98479217]
[1726592518942,1.08e-05,132.82,132.81,50.69978217]
[1726592520330,0.2553024,132.85,132.82,70.25098]
[1726592520639,0.2553024,132.85,132.84,43.98479217]
[1726592520809,16.92534081,132.91,132.85,20.0]
[1726592521743,16.92534081,132.91,132.81,22.702]
[1726592521744,1.66654481,132.9,132.81,22.702]
[1726592521928,16.92534081,132.91,132.78,22.6861]
[1726592521929,23.902374,132.86,132.78,22.6861]
[1726592522141,23.902374,132.86,132.78,22.771224]
[1726592522142,24.027864,132.86,132.78,22.771224]
[1726592522436,1.66654481,132.85,132.78,22.771224]
[1726592522642,25.69440881,132.86,132.78,22.771224]
[1726592522841,1.66654481,132.85,132.78,22.771224]
[1726592523052,24.027864,132.86,132.78,22.771224]
[1726592523244,25.69440881,132.86,132.78,22.771224]
[1726592523429,25.69440881,132.86,132.79,20.0]
[1726592523740,24.027864,132.84,132.78,0.085124]
[1726592523910,23.902374,132.82,132.78,0.085124]
[1726592524114,23.776884,132.82,132.78,0.085124]
[1726592524315,7.65329,132.84,132.78,23.94442617]
[1726592524316,0.25098,132.84,132.78,23.94442617]
[1726592524726,21.5416,132.87,132.78,23.94442617]
[1726592524923,23.776884,132.86,132.8,23.85930217]
[1726592525146,23.776884,132.86,132.78,0.085124]
[1726592525147,0.25098,132.85,132.78,23.94442617]
[1726592525329,23.776884,132.86,132.79,20.0]
[1726592525527,14.015,132.87,132.8,23.85930217]
[1726592525726,15.7502594,132.89,132.82,23.85930217]
[1726592526041,15.7502594,132.89,132.83,20.0]
[1726592526435,15.7502594,132.89,132.82,23.85930217]
[1726592526642,15.7502594,132.89,132.81,16.3406]
[1726592526947,15.7502594,132.89,132.82,23.85930217]
[1726592527113,23.902374,132.88,132.82,23.85930217]
[1726592527512,15.7502594,132.89,132.82,23.85930217]
[1726592529048,23.776884,132.88,132.82,23.85930217]
[1726592530937,23.776884,132.86,132.8,6.2666]
[1726592531548,0.12549,132.87,132.8,30.12590217]
[1726592531750,23.902374,132.88,132.8,30.12590217]
[1726592531953,0.12549,132.87,132.8,30.12590217]
[1726592532458,31.427874,132.88,132.8,30.12590217]
[1726592532658,0.12549,132.87,132.8,30.12590217]
[1726592532954,31.429174,132.86,132.8,6.2666]
[1726592533265,0.12549,132.85,132.8,6.2666]
[1726592533439,23.776884,132.86,132.8,6.2666]
[1726592533640,23.776884,132.87,132.8,30.12590217]
[1726592533951,31.303084,132.87,132.8,30.12590217]
[1726592534131,23.902374,132.88,132.8,30.12590217]
[1726592534448,23.2756594,132.89,132.8,30.12590217]
[1726592534449,0.4806858,132.9,132.84,23.85930217]
[1726592534657,8.0051858,132.9,132.84,23.85930217]
[1726592534839,0.4806858,132.9,132.84,23.85930217]
[1726592535343,0.4806858,132.9,132.85,15.3851]
[1726592535539,2.14723061,132.9,132.85,15.3851]
[1726592535749,0.4806858,132.9,132.85,15.3851]
[1726592536326,0.4806858,132.9,132.82,40.27490217]
[1726592536531,31.302884,132.88,132.82,40.27490217]
[1726592536831,0.12549,132.87,132.8,6.2666]
[1726592537035,23.902374,132.86,132.8,6.2666]
[1726592537463,23.776884,132.86,132.8,30.12590217]
[1726592537757,23.902374,132.87,132.8,30.12590217]
[1726592537928,23.902374,132.88,132.8,30.12590217]
[1726592538133,31.428074,132.88,132.8,30.12590217]
[1726592538347,7.5263,132.87,132.8,30.12590217]
[1726592538655,25.44342881,132.86,132.8,30.12590217]
[1726592538853,7.65319,132.85,132.8,6.2666]
[1726592539158,7.5289,132.83,132.79,16.4156]
[1726592539360,23.776884,132.84,132.79,16.4156]
[1726592539535,1.66654481,132.83,132.78,0.085124]
[1726592539738,23.776884,132.82,132.78,0.085124]
[1726592539937,0.12549,132.83,132.78,0.085124]
[1726592540164,23.902374,132.83,132.78,0.085124]
[1726592540461,7.5271,132.86,132.78,0.085124]
[1726592540668,23.776884,132.85,132.78,23.94442617]
[1726592540841,0.12549,132.87,132.79,20.0]
[1726592541163,1.79203481,132.88,132.79,23.85930217]
[1726592541331,0.12549,132.88,132.8,20.0]
[1726592541535,0.4806858,132.9,132.81,15.567]
[1726592541753,7.5255,132.89,132.81,15.567]
[1726592542167,8.0051858,132.9,132.81,39.42630217]
[1726592542462,8.0051858,132.9,132.83,6.0382]
[1726592542666,1.66654481,132.89,132.83,6.0382]
[1726592543432,0.4806858,132.9,132.83,29.89750217]
[1726592543633,2.14723061,132.9,132.83,29.89750217]
[1726592545176,0.4806858,132.9,132.83,29.89750217]
[1726592545343,24.2575698,132.9,132.83,29.89750217]
[1726592546651,0.4806858,132.9,132.84,20.0]
[1726592546860,0.4806858,132.9,132.85,23.85930217]
[1726592547453,0.4806858,132.9,132.86,20.0]
[1726592548161,0.4806858,132.9,132.87,15.1247]
[1726592548382,0.4806858,132.9,132.88,6.0613]
[1726592554668,0.4806858,132.9,132.87,15.1247]
[1726592555177,23.7575698,132.91,132.87,15.1247]
[1726592556553,0.25098,132.91,132.87,15.1247]
[1726592556755,9.19094481,132.9,132.85,6.477]
[1726592556981,7.525,132.89,132.83,16.5895]
[1726592557278,23.776884,132.86,132.82,6.5351]
[1726592557474,25.44342881,132.86,132.82,6.5351]
[1726592557855,31.303684,132.86,132.82,6.5351]
[1726592558260,23.776884,132.86,132.82,6.5351]
[1726592558461,0.25098,132.85,132.8,16.5176]
[1726592558684,1.91752481,132.85,132.8,16.5176]
[1726592559052,0.25098,132.85,132.8,16.5176]
[1726592559482,7.77828,132.85,132.8,16.5176]
[1726592559654,1.91752481,132.85,132.8,16.5176]
[1726592559850,31.303684,132.86,132.8,16.5176]
[1726592560070,23.776884,132.86,132.8,16.5176]
[1726592560384,23.776884,132.86,132.78,6.4111014]
[1726592560385,1.91752481,132.85,132.78,6.4111014]
[1726592560563,9.44472481,132.85,132.78,6.4111014]
[1726592560764,23.776884,132.84,132.78,6.4111014]
[1726592561088,23.902374,132.85,132.78,6.4111014]
[1726592561298,23.776884,132.85,132.79,1.5050574]
[1726592561467,23.776884,132.85,132.78,6.4111014]
[1726592562288,14.60813281,132.86,132.79,20.0]
[1726592562452,14.60813281,132.86,132.79,43.85930217]
[1726592563057,14.60813281,132.86,132.8,1.50467937]
[1726592563275,14.60813281,132.86,132.79,43.85930217]
[1726592563590,23.776884,132.85,132.79,43.85930217]
[1726592564857,14.60813281,132.86,132.79,43.85930217]
[1726592566260,23.776884,132.85,132.79,43.85930217]
[1726592567382,14.60813281,132.86,132.79,43.85930217]
[1726592568764,16.27467762,132.86,132.79,43.85930217]
[1726592569090,23.776884,132.85,132.79,20.0]
[1726592569287,32.97072881,132.85,132.79,20.0]
[1726592569479,7.5283,132.84,132.78,6.4111014]
[1726592569784,23.776884,132.83,132.78,6.4111014]
[1726592570180,25.44342881,132.83,132.78,6.4111014]
[1726592570496,9.44642481,132.82,132.78,6.4111014]
[1726592570790,23.776884,132.81,132.78,6.4111014]
[1726592571358,14.60813281,132.86,132.78,6.4111014]
[1726592571596,33.09651881,132.85,132.78,6.4111014]
[1726592571770,33.22200881,132.85,132.78,6.4111014]
[1726592572087,7.5278,132.84,132.78,6.4111014]
[1726592572878,25.69440881,132.85,132.78,6.4111014]
[1726592572879,23.776884,132.82,132.78,6.4111014]
[1726592573263,25.44342881,132.82,132.78,6.4111014]
[1726592573469,0.25098,132.81,132.78,0.3177014]
[1726592573669,23.776884,132.8,132.78,0.3177014]
[1726592575066,23.776884,132.81,132.78,0.3177014]
[1726592578399,1.66654481,132.8,132.78,0.3177014]
[1726592580397,31.306384,132.81,132.78,0.3177014]
[1726592580578,1.66654481,132.8,132.78,0.3177014]
[1726592581573,31.306384,132.81,132.78,0.3177014]
[1726592581773,7.5281,132.84,132.78,0.3177014]
[1726592581980,7.5284,132.83,132.78,0.3177014]
[1726592582179,7.529,132.82,132.78,0.3177014]
[1726592582481,1.66654481,132.81,132.78,0.3177014]
[1726592583106,31.557964,132.8,132.78,0.3177014]
[1726592583304,33.09951881,132.79,132.78,0.3177014]
[1726592583480,33.22500881,132.79,132.78,0.3177014]
[1726592583681,31.558464,132.79,132.78,0.2311758]
[1726592584078,24.027864,132.79,132.78,0.2311758]
[1726592584906,23.776884,132.8,132.78,0.2311758]
[1726592585083,23.776884,132.81,132.78,0.2311758]
[1726592585643,23.902374,132.82,132.78,0.2311758]
[1726592586073,31.307384,132.8,132.78,0.2311758]
[1726592586279,0.12549,132.79,132.78,0.2311758]
[1726592587092,23.902374,132.79,132.78,0.2311758]
[1726592587598,31.432974,132.79,132.78,0.2311758]
[1726592587991,31.558464,132.79,132.78,0.2311758]
[1726592588792,33.22500881,132.79,132.78,0.2311758]
[1726592590116,31.558464,132.79,132.78,0.2311758]
[1726592591117,7.5291,132.82,132.78,0.2311758]
[1726592591320,51.9802738,132.85,132.78,0.2311758]
[1726592591625,40.6988738,132.85,132.78,0.2311758]
[1726592591912,7.5288,132.83,132.78,0.2311758]
[1726592592112,7.53,132.81,132.78,0.2311758]
[1726592592314,32.8336,132.85,132.78,0.2311758]
[1726592592521,7.529,132.82,132.78,0.2311758]
[1726592593220,23.776884,132.81,132.78,0.2311758]
[1726592593920,14.60813281,132.86,132.79,15.3498]
[1726592594119,7.5277,132.85,132.79,15.3498]
[1726592594806,7.5279,132.84,132.79,15.3498]
[1726592595020,7.5296,132.81,132.79,15.3498]
[1726592595201,31.307084,132.8,132.78,0.2311758]
[1726592595400,1.91752481,132.79,132.78,0.2311758]
[1726592595598,24.027864,132.79,132.78,0.2311758]
[1726592597502,7.5291,132.82,132.78,0.2311758]
[1726592597715,23.902374,132.81,132.78,0.2311758]
[1726592597920,24.027864,132.81,132.78,0.2311758]
[1726592598296,23.776884,132.82,132.78,0.2311758]
[1726592598821,22.47608801,132.86,132.78,0.2311758]
[1726592599120,22.13523281,132.86,132.78,0.2311758]
[1726592599316,14.60813281,132.86,132.79,6.6472]
[1726592599490,14.60813281,132.86,132.8,15.4929]
[1726592600519,14.60813281,132.86,132.81,1.49783642]
[1726592601613,14.60813281,132.86,132.8,15.4929]
[1726592601818,32.97062881,132.85,132.8,15.4929]
[1726592602028,0.25098,132.84,132.8,15.4929]
[1726592602228,23.776884,132.83,132.8,15.4929]
[1726592602725,23.776884,132.81,132.79,6.6472]
[1726592603100,24.027864,132.82,132.79,6.6472]
[1726592603824,31.557364,132.82,132.78,0.2311758]
[1726592604442,23.902374,132.84,132.78,0.2311758]
[1726592604649,14.60813281,132.86,132.78,0.2311758]
[1726592605118,14.60813281,132.86,132.79,23.2451]
[1726592605716,14.60813281,132.86,132.8,20.0]
[1726592607023,14.60813281,132.86,132.82,21.9879]
[1726592607230,7.5239,132.91,132.82,21.9879]
[1726592607431,7.5239,132.91,132.83,1.50422609]
[1726592607628,7.5246,132.9,132.82,21.9879]
[1726592607825,7.5259,132.88,132.82,21.9879]
[1726592608173,7.5251,132.89,132.82,21.9879]
[1726592608517,23.776884,132.88,132.82,21.9879]
[1726592608711,23.902374,132.88,132.82,21.9879]
[1726592609127,31.427974,132.88,132.82,21.9879]
[1726592609717,23.902374,132.88,132.82,21.9879]
[1726592609919,23.776884,132.89,132.82,21.9879]
[1726592610419,25.44342881,132.89,132.82,21.9879]
[1726592611353,0.12549,132.88,132.82,21.9879]
[1726592612053,23.776884,132.87,132.82,21.9879]
[1726592612254,23.776884,132.85,132.82,21.9879]
[1726592612422,25.65984448,132.91,132.82,21.9879]
[1726592612423,24.027864,132.9,132.82,21.9879]
[1726592612629,24.027864,132.87,132.82,21.9879]
[1726592614255,31.554064,132.87,132.82,21.9879]
[1726592616151,0.25098,132.81,132.8,0.2311758]
[1726592616651,23.776884,132.82,132.8,0.2311758]
[1726592616838,0.25098,132.84,132.8,0.2311758]
[1726592617035,24.027864,132.84,132.8,0.2311758]
[1726592617225,33.22220881,132.84,132.8,0.2311758]
[1726592617859,25.69440881,132.84,132.8,0.2311758]
[1726592618026,23.902374,132.84,132.8,0.2311758]
[1726592618934,0.12549,132.83,132.8,0.2311758]
[1726592619327,24.027864,132.81,132.8,0.2311758]
[1726592619725,23.902374,132.81,132.8,0.2311758]
[1726592620037,23.776884,132.82,132.8,0.2311758]
[1726592620247,32.97262881,132.82,132.8,0.2311758]
[1726592620431,0.25098,132.81,132.8,0.2311758]
[1726592620939,25.69440881,132.81,132.8,0.2311758]
[1726592622453,24.027864,132.81,132.8,0.2311758]
[1726592623356,31.557364,132.81,132.8,0.2311758]
[1726592624561,31.559664,132.77,132.76,0.2572608]
[1726592625261,24.027864,132.77,132.76,0.2572608]
[1726592625458,25.69440881,132.77,132.76,0.2572608]
[1726592625639,33.22620881,132.77,132.76,0.2572608]
[1726592626441,24.027864,132.77,132.76,0.2572608]
[1726592626643,1.66654481,132.82,132.76,0.2572608]
[1726592627364,7.5308,132.79,132.76,0.2572608]
[1726592627732,7.5313,132.78,132.76,0.2572608]
[1726592627937,23.902374,132.77,132.76,0.2572608]
[1726592629652,31.559664,132.77,132.76,0.2572608]
[1726592633354,24.027864,132.77,132.76,0.2572608]
[1726592633556,7.87094019,132.8,132.76,0.2572608]
[1726592633760,20.0,132.82,132.76,0.2572608]
[1726592633936,7.5307,132.79,132.76,0.2572608]
[1726592634863,24.027864,132.78,132.76,0.2572608]
[1726592637955,25.69440881,132.78,132.76,0.2572608]
[1726592638442,31.559664,132.77,132.76,0.2572608]
[1726592639148,24.027864,132.77,132.76,0.2572608]
[1726592639367,31.559664,132.77,132.76,0.2572608]
[1726592642170,33.22620881,132.77,132.76,0.2572608]
[1726592643279,31.559664,132.77,132.76,0.2572608]
[1726592643446,47.18251021,132.82,132.76,0.2572608]
[1726592643447,7.8697654,132.82,132.76,0.2572608]
[1726592643865,30.1,132.84,132.76,0.2572608]
[1726592644177,7.5307,132.79,132.76,0.2572608]
[1726592644477,28.35650419,132.83,132.76,0.2572608]
[1726592644478,7.5318,132.77,132.76,0.2572608]
[1726592645077,31.434174,132.77,132.76,0.2572608]
[1726592645278,23.902374,132.77,132.76,0.2572608]
[1726592645487,7.86885938,132.83,132.76,0.2572608]
[1726592645775,7.5293,132.82,132.76,0.2572608]
[1726592646177,9.19584481,132.82,132.76,0.2572608]
[1726592646477,7.5301,132.8,132.76,0.2572608]
[1726592646693,7.5294,132.82,132.76,0.2572608]
[1726592647054,33.22390881,132.81,132.76,0.2572608]
[1726592647254,1.79203481,132.81,132.76,0.2572608]
[1726592648181,1.79203481,132.82,132.76,0.2572608]
[1726592648376,31.558064,132.8,132.76,0.2572608]
[1726592648878,23.776884,132.78,132.76,0.2572608]
[1726592649055,31.558064,132.8,132.76,0.2572608]
[1726592649382,23.776884,132.8,132.76,0.2572608]
[1726592650480,23.776884,132.81,132.76,0.2572608]
[1726592650869,0.25098,132.82,132.76,0.2572608]
[1726592651079,7.78008,132.82,132.77,21.3439]
[1726592651588,7.5312,132.78,132.77,21.3439]
[1726592651880,7.65579,132.8,132.77,21.3439]
[1726592652068,0.25098,132.82,132.77,21.3439]
[1726592652382,23.776884,132.8,132.77,21.3439]
[1726592654480,31.306984,132.8,132.77,21.3439]
[1726592654681,23.776884,132.78,132.77,21.3439]
[1726592654887,31.434174,132.77,132.76,0.2572608]
[1726592655859,23.902374,132.77,132.76,0.2572608]
[1726592656477,23.776884,132.78,132.76,0.2572608]
[1726592656690,7.5288,132.83,132.76,0.2572608]
[1726592656992,44.10207851,132.85,132.76,0.2572608]
[1726592657686,7.5293,132.82,132.76,0.2572608]
[1726592658577,23.776884,132.81,132.76,0.2572608]
[1726592659676,31.306384,132.81,132.76,0.2572608]
[1726592659880,0.25098,132.8,132.76,0.2572608]
[1726592660298,23.776884,132.79,132.76,0.2572608]
[1726592660507,31.307584,132.79,132.76,0.2572608]
[1726592660681,9.44872481,132.78,132.76,0.2572608]
[1726592660883,31.559664,132.77,132.76,0.2572608]
[1726592661985,33.22620881,132.77,132.76,0.2572608]
[1726592662395,31.559664,132.77,132.76,0.2572608]
[1726592663169,33.22620881,132.77,132.76,0.2572608]
[1726592663472,31.559664,132.77,132.76,0.2572608]
[1726592664709,33.22620881,132.77,132.76,0.2572608]
[1726592665070,31.559664,132.77,132.76,0.2572608]
[1726592666968,31.559664,132.77,132.72,0.2572608]
[1726592666969,7.534,132.73,132.72,0.2572608]
[1726592667199,31.561864,132.73,132.72,0.2572608]
[1726592668067,24.027864,132.73,132.72,0.2572608]
[1726592668274,23.776884,132.73,132.72,0.2572608]
[1726592670407,0.12549,132.79,132.73,7.5339]
[1726592670722,23.902374,132.75,132.72,0.2572608]
[1726592671006,23.902374,132.75,132.72,7.7917608]
[1726592671375,23.776884,132.76,132.73,7.534]
[1726592671675,31.309284,132.76,132.72,0.2572608]
[1726592672206,23.776884,132.76,132.72,0.2572608]
[1726592672791,25.44342881,132.76,132.72,0.2572608]
[1726592673239,32.97572881,132.76,132.72,0.2572608]
[1726592673825,23.776884,132.74,132.72,0.2572608]
[1726592674003,7.534,132.73,132.72,0.2572608]
[1726592674200,31.310884,132.73,132.72,0.2572608]
[1726592674616,23.776884,132.73,132.72,0.2572608]
[1726592675223,31.561864,132.73,132.72,0.2572608]
[1726592678298,24.027864,132.73,132.72,0.2572608]
[1726592678501,31.561864,132.73,132.72,0.2572608]
[1726592679526,33.22840881,132.73,132.72,0.2572608]
[1726592679931,25.69440881,132.73,132.72,0.2572608]
[1726592680241,33.22840881,132.73,132.72,0.2572608]
[1726592683742,7.78728,132.69,132.68,0.5053692]
[1726592683946,24.027864,132.65,132.64,6.8865608]
[1726592684630,24.027864,132.65,132.64,0.2572608]
[1726592685136,25.69440881,132.65,132.64,0.2572608]
[1726592686451,24.027864,132.65,132.64,0.2572608]
[1726592688141,33.23300881,132.65,132.64,0.2572608]
[1726592688825,33.23300881,132.65,132.6,0.5053692]
[1726592688826,24.027864,132.63,132.6,0.5053692]
[1726592689014,24.027864,132.61,132.6,0.5053692]
[1726592689638,24.027864,132.61,132.51,23.87983667]
[1726592689639,24.027864,132.61,132.54,23.4671]
[1726592689951,25.69440881,132.6,132.59,0.0410812]
[1726592690234,24.027864,132.6,132.59,0.0410812]
[1726592691532,33.23580881,132.6,132.59,0.0410812]
[1726592691916,54.06440657,132.6,132.59,0.0410812]
[1726592692254,54.06440657,132.6,132.55,0.2821996]
[1726592692255,24.027864,132.59,132.55,0.2821996]
[1726592692545,23.902374,132.57,132.55,0.2821996]
[1726592692711,25.69440881,132.56,132.55,0.2821996]
[1726592694535,42.86036837,132.56,132.55,0.2821996]
[1726592694740,50.40406837,132.56,132.55,0.2821996]
[1726592694911,41.19382356,132.56,132.55,0.2821996]
[1726592695720,42.86036837,132.56,132.55,0.2821996]
[1726592696047,41.19382356,132.56,132.55,0.2821996]
[1726592698265,17.41693956,132.56,132.55,0.2821996]
[1726592699241,17.41693956,132.56,132.55,7.8264996]
[1726592699650,17.29144956,132.56,132.55,7.8264996]
[1726592699836,17.16595956,132.56,132.55,7.8264996]
[1726592700051,17.16595956,132.56,132.55,22.8816996]
[1726592700352,14.015,132.66,132.6,7.5411]
[1726592700528,7.87351618,132.64,132.6,7.541]
[1726592701944,1.66654481,132.65,132.63,7.5395]
[1726592702119,15.40336057,132.64,132.62,7.5402]
[1726592702320,15.40336057,132.64,132.63,7.5397]
[1726592702745,15.40336057,132.64,132.62,7.5402]
[1726592703341,15.40336057,132.64,132.63,7.5397]
[1726592703824,15.40336057,132.64,132.63,31.41953667]
[1726592704026,0.2821996,132.7,132.67,7.537]
[1726592704226,0.2821996,132.7,132.67,23.87983667]
[1726592704457,0.2821996,132.7,132.69,31.41613667]
[1726592704625,0.2821996,132.7,132.68,6.4331]
[1726592704823,0.2821996,132.7,132.68,13.9698]
[1726592705249,0.2821996,132.7,132.69,7.5363]
[1726592705456,0.2821996,132.7,132.68,13.97]
[1726592705942,0.2821996,132.7,132.68,6.4331]
[1726592706955,1.94874441,132.7,132.64,38.21932415]
[1726592707255,15.73546718,132.69,132.65,6.5329]
[1726592707961,1.66654481,132.68,132.65,6.5329]
[1726592708252,15.86095718,132.69,132.66,7.538]
[1726592708253,15.73546718,132.69,132.66,7.538]
[1726592708450,15.73546718,132.69,132.68,7.5369]
[1726592709351,15.73546718,132.69,132.67,7.5374]
[1726592709759,15.73546718,132.69,132.68,7.5369]
[1726592710456,15.73546718,132.69,132.67,7.5374]
[1726592710625,15.73546718,132.69,132.65,6.5329]
[1726592710830,15.73546718,132.69,132.65,14.0713]
[1726592710831,1.79203481,132.68,132.65,14.0713]
[1726592711051,0.12549,132.68,132.65,6.5329]
[1726592711232,0.12549,132.67,132.65,6.5329]
[1726592711438,24.36627306,132.67,132.62,44.69902415]
[1726592711654,24.24078306,132.66,132.64,7.5386]
[1726592711855,24.24078306,132.66,132.62,6.4797]
[1726592712041,25.90732787,132.66,132.62,14.0198]
[1726592712954,24.24078306,132.66,132.62,14.0198]
[1726592713160,24.24078306,132.66,132.62,6.4797]
[1726592713342,24.24078306,132.66,132.65,7.5386]
[1726592714540,24.24078306,132.66,132.64,7.5389]
[1726592714748,24.24078306,132.66,132.65,7.5386]
[1726592716556,0.2821996,132.7,132.69,7.5363]